bitfinex/quotes_ETHUSD_20250517
["timestamp","ask_amount","ask_price","bid_price","bid_amount"]
[1747510782858,4.04271115,2473.6,2473.3,0.38309903]
[1747510784161,4.04258324,2473.7,2473.2,0.7689]
[1747510784360,4.0427171,2473.6,2473.2,0.7689]
[1747510786502,4.03593969,2473.6,2473.2,0.7689]
[1747510786664,4.03593969,2473.6,2473.3,0.38358915]
[1747510787603,4.04286522,2473.5,2473.3,0.38358915]
[1747510788103,4.04286522,2473.5,2473.4,0.38358915]
[1747510790002,4.04286522,2473.5,2473.3,0.38358915]
[1747510791314,4.36800477,2473.9,2473.3,0.38358915]
[1747510791478,12.11700477,2473.9,2473.4,0.7587]
[1747510791686,4.042487,2473.8,2473.4,2.05685393]
[1747510792270,4.04270392,2473.6,2473.5,0.38358915]
[1747510796516,4.04295912,2473.5,2473.3,0.38358915]
[1747510798815,4.04295912,2473.5,2473.4,0.38358915]
[1747510800215,16.59908931,2473.9,2473.4,0.38358915]
[1747510800514,4.04271507,2473.6,2473.4,0.38358915]
[1747510800702,4.04271507,2473.6,2473.5,0.38358915]
[1747510801222,4.0340044,2473.6,2473.5,0.38358915]
[1747510801727,5.05806919,2473.6,2473.5,0.38358915]
[1747510802505,5.0238044,2473.6,2473.5,0.38358915]
[1747510803022,4.04289105,2473.5,2473.0,0.8161]
[1747510803228,4.04289105,2473.5,2472.9,0.48034597]
[1747510803229,4.04367165,2473.0,2472.9,0.48034597]
[1747510803465,4.04358704,2473.1,2472.9,0.48034597]
[1747510803784,4.04367165,2473.0,2472.9,0.48034597]
[1747510804326,4.04367165,2473.0,2472.9,0.86559744]
[1747510804631,5.70314231,2473.0,2472.9,0.86559744]
[1747510804930,22.43494231,2473.0,2472.9,0.86559744]
[1747510805095,22.40067752,2473.0,2472.9,0.86559744]
[1747510805918,34.89963386,2473.0,2472.9,0.86559744]
[1747510806119,39.15463386,2473.0,2472.9,0.48034597]
[1747510806318,4.04481656,2472.3,2472.2,0.38525147]
[1747510806620,11.79181656,2472.3,2472.2,0.38525147]
[1747510807608,12.77491111,2472.3,2472.2,0.38525147]
[1747510807919,4.0451438,2472.1,2472.0,0.48034597]
[1747510808223,4.07940859,2472.1,2472.0,0.48034597]
[1747510808815,4.0451438,2472.1,2472.0,0.48034597]
[1747510809123,4.04437995,2472.6,2472.1,0.8298]
[1747510809422,4.04470538,2472.4,2472.1,0.8298]
[1747510809589,4.04482379,2472.3,2472.1,0.8298]
[1747510810389,4.04498017,2472.2,2472.1,0.8298]
[1747510810734,4.045403,2472.0,2471.7,0.8298]
[1747510810919,4.04537477,2472.0,2471.7,0.8298]
[1747510811145,4.04547848,2471.9,2471.7,0.8298]
[1747510811567,4.04563476,2471.8,2471.7,0.8298]
[1747510811770,4.48498723,2472.1,2471.5,1.31014597]
[1747510812058,10.02498426,2472.1,2471.5,1.31014597]
[1747510812230,4.04591329,2471.7,2471.5,1.31014597]
[1747510812917,11.82370417,2471.8,2471.5,1.31014597]
[1747510813218,4.04516274,2472.1,2471.6,0.8298]
[1747510813419,11.82398418,2472.2,2471.6,0.8298]
[1747510813657,4.04498418,2472.2,2471.8,0.8298]
[1747510813971,7.78,2472.3,2471.8,0.8298]
[1747510814175,4.04465582,2472.4,2471.9,0.7892]
[1747510814319,4.04482148,2472.3,2471.9,0.7892]
[1747510814659,7.779,2472.4,2471.9,0.7892]
[1747510814871,4.04499774,2472.2,2471.9,0.7892]
[1747510815266,4.0449104,2472.3,2471.9,0.7892]
[1747510815417,4.04505686,2472.2,2471.9,0.7892]
[1747510815623,4.03793823,2472.2,2471.9,0.7892]
[1747510815924,4.04530744,2472.0,2471.9,0.7892]
[1747510816147,4.04518096,2472.1,2471.9,0.7892]
[1747510816313,4.04530744,2472.0,2471.9,0.7892]
[1747510816715,4.04556643,2471.9,2471.6,0.7892]
[1747510816916,4.04538482,2472.0,2471.6,1.64262]
[1747510817116,4.04549417,2471.9,2471.6,1.64262]
[1747510817573,4.04538597,2472.0,2471.6,1.64262]
[1747510818017,4.04561753,2471.9,2471.6,1.64262]
[1747510818213,4.04554093,2471.9,2471.6,1.64262]
[1747510818752,7.779,2472.4,2471.6,1.64262]
[1747510818753,4.04571856,2471.8,2471.6,1.64262]
[1747510818952,4.04579843,2471.7,2471.6,0.7892]
[1747510819152,4.045892,2471.7,2471.3,0.8042]
[1747510820157,4.04570242,2471.8,2471.3,0.8042]
[1747510820354,7.785,2472.3,2471.7,0.8042]
[1747510820559,4.04501524,2472.2,2471.7,0.8042]
[1747510821069,4.04482529,2472.3,2471.8,0.8042]
[1747510821421,4.04482529,2472.3,2471.9,0.38297967]
[1747510821646,7.784,2472.5,2471.9,0.38297967]
[1747510821866,4.04515472,2472.1,2471.9,0.38297967]
[1747510822069,4.04530744,2472.0,2471.9,0.38297967]
[1747510822249,11.83830744,2472.0,2471.9,0.38297967]
[1747510823350,11.83830744,2472.0,2471.5,0.8042]
[1747510823659,4.0454772,2471.9,2471.5,0.8042]
[1747510825068,11.83839641,2472.0,2471.6,0.38348095]
[1747510825280,0.9898,2472.6,2471.7,0.7664]
[1747510825577,4.04465732,2472.4,2472.0,0.7664]
[1747510825956,4.04457713,2472.5,2472.0,0.7664]
[1747510826123,7.794,2472.5,2472.1,0.04044907]
[1747510826322,7.794,2472.5,2471.9,0.7664]
[1747510826555,11.83849116,2472.5,2472.1,0.7664]
[1747510826863,7.794,2472.5,2472.1,0.7664]
[1747510827662,4.04404364,2472.8,2472.1,0.7664]
[1747510827850,7.8,2473.0,2472.5,0.7664]
[1747510828162,4.04413035,2472.8,2472.5,0.7664]
[1747510829053,4.04416937,2472.7,2472.5,0.7664]
[1747510829652,4.04393186,2472.9,2472.5,0.7664]
[1747510829968,4.04417958,2472.7,2472.5,0.7664]
[1747510830265,4.03637754,2472.5,2472.3,0.7664]
[1747510831179,4.04406995,2472.8,2472.3,0.7664]
[1747510831738,11.84186575,2472.9,2472.3,0.7664]
[1747510831969,11.84186575,2472.9,2472.4,0.38429835]
[1747510832133,11.84186575,2472.9,2472.5,0.7664]
[1747510832332,5.03428938,2472.5,2472.4,0.38429835]
[1747510832558,20.85655417,2472.5,2472.4,0.38429835]
[1747510832860,20.82228938,2472.5,2472.4,0.38429835]
[1747510833592,4.04583965,2471.7,2471.4,0.7664]
[1747510834661,4.04612583,2471.5,2471.4,0.7664]
[1747510835861,4.04628955,2471.4,2471.3,0.48034597]
[1747510836090,7.895,2471.7,2471.3,1.51440315]
[1747510836269,11.94172525,2471.8,2471.4,0.7664]
[1747510836431,4.04547235,2471.9,2471.5,0.7664]
[1747510837068,11.94438846,2472.0,2471.6,0.38506799]
[1747510837231,11.94440168,2472.0,2471.6,0.38506799]
[1747510837446,4.04417289,2472.7,2471.7,0.7664]
[1747510837447,7.897,2472.1,2471.7,0.7664]
[1747510837667,0.4398,2472.5,2471.7,0.7664]
[1747510837868,4.04457087,2472.5,2471.8,0.80685362]
[1747510838189,4.04480062,2472.4,2471.9,0.48526278]
[1747510838384,4.04452343,2472.5,2472.0,0.7664]
[1747510838693,4.0446814,2472.4,2472.0,1.5664]
[1747510839045,4.04458157,2472.5,2472.0,1.5664]
[1747510839370,4.04458157,2472.5,2472.1,0.64821873]
[1747510839575,4.04458157,2472.5,2472.0,0.7664]
[1747510839778,4.04490912,2472.3,2472.0,0.7664]
[1747510839982,4.04441515,2472.6,2472.0,0.7664]
[1747510840190,4.04421842,2472.7,2472.1,0.8329]
[1747510840371,4.04416912,2472.7,2472.2,0.8329]
[1747510840570,4.04416912,2472.7,2472.3,1.26670189]
[1747510840874,4.04416912,2472.7,2472.3,2.13211585]
[1747510841783,4.04416912,2472.7,2472.4,0.38506799]
[1747510843615,4.04448938,2472.5,2472.4,0.38506799]
[1747510843882,4.04481656,2472.3,2472.2,0.48034597]
[1747510844449,4.04460608,2472.5,2472.2,0.48034597]
[1747510844655,4.04426808,2472.7,2472.2,0.48034597]
[1747510844656,7.889,2472.4,2472.2,0.48034597]
[1747510844866,7.888,2472.5,2472.2,0.48034597]
[1747510845067,4.0446641,2472.4,2472.2,0.48034597]
[1747510845805,4.04481656,2472.3,2472.2,0.48034597]
[1747510847102,4.04481656,2472.3,2472.1,0.38453275]
[1747510847308,4.04471362,2472.4,2472.1,0.38453275]
[1747510847612,11.93255554,2472.5,2472.1,0.38453275]
[1747510847613,11.93258353,2472.5,2472.1,0.38453275]
[1747510847781,4.04466882,2472.4,2472.1,0.38453275]
[1747510848660,4.04498017,2472.2,2472.1,0.38453275]
[1747510850004,4.04489624,2472.3,2472.1,0.38453275]
[1747510850191,11.92153568,2472.5,2472.1,0.38453275]
[1747510850392,4.04441625,2472.6,2472.1,0.38453275]
[1747510850586,4.04456404,2472.5,2472.1,0.38453275]
[1747510850787,4.04456404,2472.5,2472.1,0.90375466]
[1747510850987,4.04456404,2472.5,2472.2,0.38453275]
[1747510852005,4.0444291,2472.6,2472.2,0.38453275]
[1747510852174,8.0,2472.9,2472.3,0.38453275]
[1747510852382,4.04449848,2472.5,2472.3,0.38453275]
[1747510853401,4.04465296,2472.4,2472.3,0.38453275]
[1747510854670,4.04492006,2472.3,2472.1,0.38453275]
[1747510854974,4.04498017,2472.2,2472.1,0.38453275]
[1747510855382,4.07924496,2472.2,2472.1,0.38453275]
[1747510855581,21.19503498,2472.2,2472.1,0.38453275]
[1747510855930,21.16077019,2472.2,2472.1,0.38453275]
[1747510856615,21.71077019,2472.2,2472.1,0.38453275]
[1747510856815,4.04547109,2471.9,2471.6,0.38453275]
[1747510857111,4.04579843,2471.7,2471.6,0.38453275]
[1747510857316,11.91479843,2471.7,2471.6,0.38453275]
[1747510858222,11.91479843,2471.7,2471.4,0.48034597]
[1747510858223,4.04612583,2471.5,2471.4,0.48034597]
[1747510859007,4.04597617,2471.6,2471.4,0.48034597]
[1747510859197,11.90589206,2471.7,2471.4,0.48034597]
[1747510859399,11.90589206,2471.7,2471.4,0.70931975]
[1747510859822,4.04540066,2472.0,2471.5,0.7867]
[1747510860121,4.04498017,2472.2,2471.5,0.7867]
[1747510860122,11.9151773,2472.1,2471.5,0.7867]
[1747510860322,4.04532268,2472.0,2471.5,8.6517]
[1747510860617,7.876,2472.2,2471.7,0.7867]
[1747510860807,4.04532161,2472.0,2471.7,1.65187]
[1747510862524,4.04563476,2471.8,2471.4,0.22897378]
[1747510862732,4.04638001,2471.4,2471.2,0.7867]
[1747510862892,4.04645328,2471.3,2471.2,0.7867]
[1747510863588,4.04661702,2471.2,2471.1,0.48034597]
[1747510863792,4.04638136,2471.4,2471.1,0.48034597]
[1747510863987,4.04648203,2471.3,2471.1,0.48034597]
[1747510864226,11.92239939,2471.4,2471.1,0.48034597]
[1747510864827,4.04647202,2471.3,2471.1,0.48034597]
[1747510865322,4.04661702,2471.2,2471.1,0.48034597]
[1747510866325,11.92813058,2471.5,2471.2,0.7879]
[1747510867115,7.882,2471.5,2471.2,0.7879]
[1747510867318,11.92813411,2471.5,2471.2,0.7879]
[1747510867626,11.92783552,2471.7,2471.2,0.7879]
[1747510867831,11.92572772,2471.8,2471.3,0.5314957]
[1747510868125,8.3058,2472.1,2471.3,0.5314957]
[1747510868332,0.4398,2472.4,2471.4,0.7879]
[1747510868504,4.04489068,2472.3,2471.6,4.04589032]
[1747510868711,4.04502062,2472.2,2471.7,0.7879]
[1747510868918,4.04506653,2472.2,2471.7,0.7879]
[1747510869304,4.04499828,2472.2,2471.7,0.7879]
[1747510869523,4.04499828,2472.2,2471.8,0.48337802]
[1747510869699,4.04499828,2472.2,2471.7,0.7879]
[1747510869902,4.04515813,2472.1,2471.7,0.7879]
[1747510871911,4.04528196,2472.1,2471.7,0.7879]
[1747510872096,4.04505443,2472.2,2471.7,0.7879]
[1747510872300,4.04490907,2472.3,2471.7,0.7879]
[1747510872503,4.04490907,2472.3,2471.8,0.48338353]
[1747510872745,4.04500553,2472.2,2471.8,0.48338353]
[1747510873032,4.04521323,2472.1,2471.7,0.7879]
[1747510873630,4.04532309,2472.0,2471.7,0.7879]
[1747510874511,4.04547707,2471.9,2471.7,0.7879]
[1747510875117,4.04539211,2472.0,2471.7,0.7879]
[1747510875720,4.04523923,2472.1,2471.7,0.7879]
[1747510875919,4.04523923,2472.1,2471.7,1.65319]
[1747510876154,12.3501171,2472.7,2471.7,1.65319]
[1747510876155,4.04448938,2472.5,2471.7,1.65319]
[1747510876324,8.4398,2472.7,2471.7,1.65319]
[1747510876325,4.04512802,2472.2,2471.7,1.65319]
[1747510876650,0.03426479,2472.1,2471.7,0.7879]
[1747510876858,4.04583387,2471.7,2471.5,0.8128]
[1747510878054,11.89561901,2471.9,2471.2,0.7946]
[1747510878055,7.85,2471.9,2471.2,0.7946]
[1747510878266,0.4398,2471.7,2471.2,0.7946]
[1747510878556,7.89926479,2471.6,2470.9,1.43275913]
[1747510878716,4.04673421,2471.2,2470.9,1.43275913]
[1747510878923,11.90053406,2471.3,2470.9,1.43275913]
[1747510879333,4.04675859,2471.2,2470.9,1.43275913]
[1747510879659,4.08094202,2471.2,2470.9,1.43275913]
[1747510879823,4.04667723,2471.2,2470.9,1.43275913]
[1747510880015,7.854,2471.3,2470.9,1.43275913]
[1747510880222,4.04683601,2471.1,2470.9,1.43275913]
[1747510881064,4.04683601,2471.1,2471.0,0.3849987]
[1747510882147,4.5209008,2471.1,2471.0,0.3849987]
[1747510882353,4.04710834,2470.9,2470.8,0.48124837]
[1747510883229,4.04688223,2471.1,2470.8,0.48124837]
[1747510884076,4.04688223,2471.1,2470.8,0.38485225]
[1747510884665,4.04696683,2471.0,2470.8,0.38485225]
[1747510884962,4.0470044,2471.0,2470.8,0.38485225]
[1747510885262,4.0470044,2471.0,2470.9,0.38485225]
[1747510885936,4.04688349,2471.1,2470.9,0.38485225]
[1747510886277,4.04689314,2471.1,2470.9,0.38485225]
[1747510886882,4.04694455,2471.0,2470.9,0.38485225]
[1747510888956,4.08120934,2471.0,2470.9,0.38485225]
[1747510889185,5.15165712,2471.4,2470.9,0.38485225]
[1747510889349,4.04685544,2471.1,2470.9,0.38485225]
[1747510889555,4.04694455,2471.0,2470.9,0.38485225]
[1747510890778,4.04694455,2471.0,2470.6,0.7741]
[1747510891777,4.04694455,2471.0,2470.7,0.38445195]
[1747510891970,4.04713388,2470.9,2470.7,0.38445195]
[1747510892379,4.04727213,2470.8,2470.7,0.38445195]
[1747510893383,4.04727213,2470.8,2470.6,0.7741]
[1747510893582,4.04719394,2470.9,2470.6,1.63401]
[1747510893877,4.04728281,2470.8,2470.6,1.63401]
[1747510894581,4.04719353,2470.9,2470.6,1.63401]
[1747510895886,4.04727906,2470.8,2470.6,1.63401]
[1747510896382,4.04727906,2470.8,2470.7,0.38448627]
[1747510897388,4.04718231,2470.9,2470.7,0.38448627]
[1747510897981,4.04718231,2470.9,2470.6,1.63401]
[1747510898283,11.83771402,2471.2,2470.6,1.63401]
[1747510898491,4.04622344,2471.5,2470.9,4.04710372]
[1747510898691,4.48582456,2471.6,2471.0,0.7818]
[1747510898692,7.79,2471.6,2471.0,0.7818]
[1747510898983,4.04645971,2471.3,2471.0,0.7818]
[1747510899178,4.04628323,2471.5,2471.0,0.7818]
[1747510899379,11.83598213,2471.6,2471.0,0.7818]
[1747510899566,7.79,2471.6,2471.0,0.7818]
[1747510899774,4.04658217,2471.3,2471.1,0.3841427]
[1747510900281,4.04661702,2471.2,2471.1,0.3841427]
[1747510900481,4.04654877,2471.3,2471.1,0.3841427]
[1747510901481,4.04654877,2471.3,2471.0,0.7818]
[1747510902590,4.04678078,2471.1,2471.0,0.7818]
[1747510902886,4.04685459,2471.1,2470.8,8.6026]
[1747510903188,4.04666162,2471.2,2470.8,9.59697584]
[1747510903364,4.04682214,2471.1,2470.8,9.59697584]
[1747510903567,4.04682214,2471.1,2470.9,0.38448646]
[1747510903878,4.04651506,2471.3,2470.9,0.38448646]
[1747510903879,4.04645328,2471.3,2470.9,0.38448646]
[1747510904085,4.04662676,2471.2,2470.9,0.38448646]
[1747510904851,4.04662676,2471.2,2471.0,0.38448646]
[1747510905292,11.82978078,2471.1,2471.0,0.38448646]
[1747510905491,20.26958078,2471.1,2471.0,0.38448646]
[1747510906755,20.26958078,2471.1,2470.6,0.7621]
[1747510906756,4.04727213,2470.8,2470.6,0.7621]
[1747510906982,4.0470467,2471.0,2470.6,0.7621]
[1747510907190,0.4398,2471.6,2470.8,0.7621]
[1747510907488,11.8356586,2471.8,2471.1,0.7621]
[1747510907795,4.04628407,2471.5,2471.1,0.7621]
[1747510907995,4.04645328,2471.3,2471.2,0.38542351]
[1747510910011,4.04636987,2471.4,2471.2,0.38542351]
[1747510910213,7.791,2471.6,2471.3,0.7604]
[1747510910377,4.04613089,2471.5,2471.3,0.7604]
[1747510911089,4.04613089,2471.5,2471.4,0.38542351]
[1747510912528,7.791,2471.7,2471.4,0.38542351]
[1747510912829,11.83480178,2471.7,2471.4,0.38542351]
[1747510913036,4.04597634,2471.6,2471.4,0.38542351]
[1747510914028,4.04597634,2471.6,2471.5,0.38542351]
[1747510915430,4.04586942,2471.7,2471.5,0.38542351]
[1747510915627,4.04596212,2471.6,2471.5,0.38542351]
[1747510916497,6.10761006,2471.6,2471.5,0.38542351]
[1747510916911,6.07334527,2471.6,2471.5,0.38542351]
[1747510917250,6.07334527,2471.6,2471.2,0.48124837]
[1747510917251,4.04645328,2471.3,2471.2,0.48124837]
[1747510919144,4.04661702,2471.2,2471.1,0.38499581]
[1747510920150,4.04612737,2471.5,2471.1,0.38499581]
[1747510920151,4.04592797,2471.7,2471.2,0.7604]
[1747510920302,4.04597935,2471.6,2471.2,0.7604]
[1747510920504,4.04597935,2471.6,2471.3,1.27743539]
[1747510920946,4.04613735,2471.5,2471.3,1.27743539]
[1747510921238,4.04570213,2471.8,2471.3,1.27743539]
[1747510921541,4.045825,2471.7,2471.3,1.27743539]
[1747510921837,4.045825,2471.7,2471.4,0.38499581]
[1747510922140,4.04579843,2471.7,2471.4,0.63690419]
[1747510922327,4.04597088,2471.6,2471.4,0.63690419]
[1747510922935,4.04587252,2471.7,2471.5,0.38499581]
[1747510923139,17.9118,2472.3,2471.6,0.7604]
[1747510923347,4.04542209,2472.0,2471.6,0.7604]
[1747510924429,4.04548576,2471.9,2471.6,0.7604]
[1747510924985,4.04548576,2471.9,2471.7,0.38499581]
[1747510926138,4.04563476,2471.8,2471.7,0.38499581]
[1747510926656,4.04556623,2471.9,2471.7,0.38499581]
[1747510927167,4.04556623,2471.9,2471.8,0.38499581]
[1747510927545,10.78704744,2472.2,2471.8,0.38499581]
[1747510927768,12.26303294,2472.7,2471.9,4.79858071]
[1747510928069,4.04439393,2472.6,2472.0,8.29635765]
[1747510928232,4.04455705,2472.5,2472.0,8.29635765]
[1747510928428,4.04475303,2472.4,2472.0,8.29635765]
[1747510928678,4.04485929,2472.3,2472.1,0.38499581]
[1747510928829,4.04498017,2472.2,2472.1,0.38499581]
[1747510929769,4.04437038,2472.6,2472.1,0.38499581]
[1747510929770,4.04432581,2472.6,2472.1,0.38499581]
[1747510930084,4.0447236,2472.4,2472.1,0.38499581]
[1747510930235,4.04481656,2472.3,2472.2,0.38499581]
[1747510930430,4.04458113,2472.5,2472.2,0.38499581]
[1747510930643,4.04458113,2472.5,2472.3,0.822]
[1747510930863,4.04448938,2472.5,2472.3,0.822]
[1747510931062,4.04465296,2472.4,2472.3,0.822]
[1747510937581,4.04481656,2472.3,2472.2,0.38499581]
[1747510938160,8.18537561,2472.3,2472.2,0.38499581]
[1747510938389,8.15111082,2472.3,2472.2,0.38499581]
[1747510939074,8.70111082,2472.3,2472.2,0.38499581]
[1747510939266,6.24801316,2472.3,2472.2,0.38499581]
[1747510939478,4.04530744,2472.0,2471.7,0.63815913]
[1747510939773,4.04596212,2471.6,2471.5,0.48124837]
[1747510941407,4.52002691,2471.6,2471.5,0.48124837]
[1747510941609,12.48576212,2471.6,2471.5,0.48124837]
[1747510942577,12.48576212,2471.6,2470.7,1.29744837]
[1747510942578,4.04699,2471.0,2470.7,1.29744837]
[1747510942812,4.48693339,2470.9,2470.7,0.48124837]
[1747510942997,4.04727213,2470.8,2470.7,0.48124837]
[1747510943989,4.04727213,2470.8,2470.7,0.8658207]
[1747510945822,8.0,2471.2,2470.7,0.38457233]
[1747510946018,7.763,2471.2,2470.8,0.8162]
[1747510946179,11.80974562,2471.2,2470.8,0.8162]
[1747510946380,4.04682992,2471.1,2470.8,1.71407723]
[1747510946583,4.04722322,2470.9,2470.7,0.38457233]
[1747510946800,4.04722322,2470.9,2470.6,0.8162]
[1747510947294,4.04730446,2470.8,2470.6,0.8162]
[1747510947600,11.80965307,2471.2,2470.6,0.8162]
[1747510947802,0.03426479,2471.1,2470.6,0.8162]
[1747510947997,4.04728489,2470.8,2470.5,7.778]
[1747510948402,4.04743594,2470.7,2470.6,0.38427072]
[1747510949536,4.04716731,2470.9,2470.6,0.38427072]
[1747510949537,4.04724144,2470.9,2470.6,0.38427072]
[1747510949836,0.4398,2471.5,2470.7,0.7866]
[1747510950035,4.04629575,2471.4,2470.9,0.7866]
[1747510950339,0.4398,2472.0,2471.2,4.04659974]
[1747510950499,4.04578175,2471.8,2471.1,4.83328134]
[1747510950700,7.789,2471.9,2471.1,0.7866]
[1747510951217,4.04603883,2471.6,2471.1,0.7866]
[1747510951424,4.04620061,2471.5,2471.1,0.7866]
[1747510951624,4.04620061,2471.5,2471.2,0.9039974]
[1747510951929,4.04620061,2471.5,2471.2,1.28783493]
[1747510953303,4.04620061,2471.5,2471.3,0.38383753]
[1747510955361,4.04620061,2471.5,2471.2,0.9039974]
[1747510955661,4.04631196,2471.4,2471.2,0.9039974]
[1747510958767,4.04631196,2471.4,2471.3,0.38412848]
[1747510960334,4.04621592,2471.5,2471.3,0.38412848]
[1747510960533,4.04538715,2472.0,2471.5,4.04597941]
[1747510960733,4.04538715,2472.0,2471.5,0.92400879]
[1747510960734,4.04531047,2472.0,2471.5,0.92400879]
[1747510961330,25.82,2472.4,2471.6,0.7636]
[1747510961331,0.4398,2472.4,2471.6,0.7636]
[1747510961560,4.04532875,2472.0,2471.6,0.7636]
[1747510961960,11.81602345,2472.2,2471.7,0.38412848]
[1747510961961,4.04524085,2472.1,2471.7,0.38412848]
[1747510962473,4.04530991,2472.0,2471.7,0.38412848]
[1747510962673,4.04530991,2472.0,2471.7,1.77290802]
[1747510963166,4.04561066,2471.9,2471.7,0.38412848]
[1747510963393,4.04532437,2472.0,2471.7,0.38412848]
[1747510965393,4.04506546,2472.2,2471.7,0.38412848]
[1747510965582,4.04488812,2472.3,2471.8,4.82261313]
[1747510965893,4.04488812,2472.3,2471.8,0.777]
[1747510966097,4.04500291,2472.2,2471.9,0.38412848]
[1747510967078,4.04530744,2472.0,2471.9,0.38412848]
[1747510969318,4.04579843,2471.7,2471.6,0.38412848]
[1747510969815,4.48559843,2471.7,2471.6,0.38412848]
[1747510970308,4.04579843,2471.7,2471.6,0.38412848]
[1747510970513,4.04521421,2472.1,2471.3,4.04632923]
[1747510970693,4.04549,2471.9,2471.4,1.15593292]
[1747510970886,4.04564499,2471.8,2471.5,7.768]
[1747510971414,4.04555074,2471.9,2471.5,7.768]
[1747510971715,4.0453959,2472.0,2471.5,7.768]
[1747510971876,4.04548029,2471.9,2471.5,9.54965789]
[1747510972077,11.83202954,2472.2,2471.4,0.7513]
[1747510972078,4.04572982,2471.8,2471.4,0.7513]
[1747510973426,4.04542083,2472.0,2471.4,0.7513]
[1747510973728,4.04547109,2471.9,2471.5,0.38439414]
[1747510973938,4.04528458,2472.1,2471.5,4.43051364]
[1747510974210,11.82428458,2472.1,2471.6,1.79403382]
[1747510974377,4.04533383,2472.0,2471.6,1.79403382]
[1747510975000,4.04533383,2472.0,2471.7,0.38439414]
[1747510976213,4.04553968,2471.9,2471.7,0.38439414]
[1747510976394,4.04563476,2471.8,2471.7,0.38439414]
[1747510977916,0.4398,2472.0,2471.7,0.38439414]
[1747510978129,4.04539712,2472.0,2471.7,0.38439414]
[1747510978622,4.04539712,2472.0,2471.8,0.38439414]
[1747510979724,4.04522176,2472.1,2471.8,0.38439414]
[1747510979912,11.81522176,2472.1,2471.8,1.20489414]
[1747510980121,4.04532239,2472.0,2471.8,1.20489414]
[1747510980614,4.04532239,2472.0,2471.9,0.38439414]
[1747510982030,4.04559343,2471.9,2471.7,0.38439414]
[1747510982322,4.04540451,2472.0,2471.7,0.38439414]
[1747510983824,14.70869428,2472.4,2471.7,4.43011134]
[1747510983825,8.2098,2472.4,2471.7,4.43011134]
[1747510983999,4.04500775,2472.2,2471.7,1.36218772]
[1747510984202,4.04517719,2472.1,2471.8,0.38439414]
[1747510984932,4.04547109,2471.9,2471.8,0.38439414]
[1747510985297,4.07973588,2471.9,2471.8,0.38439414]
[1747510986442,4.04547109,2471.9,2471.8,0.38439414]
[1747510986644,5.1439567,2471.9,2471.8,0.38439414]
[1747510986944,13.1439567,2471.9,2471.8,0.38439414]
[1747510987131,21.9037567,2471.9,2471.8,0.38439414]
[1747510987518,4.04563476,2471.8,2471.6,0.38439414]
[1747510987715,11.80479843,2471.7,2471.6,0.38439414]
[1747510988809,4.04617795,2471.5,2471.3,0.38439414]
[1747510989755,11.80479843,2471.7,2471.3,0.38439414]
[1747510989756,4.04628955,2471.4,2471.3,0.38439414]
[1747510993451,15.35375456,2471.4,2471.3,0.38439414]
[1747510993949,23.12375456,2471.4,2471.3,0.38439414]
[1747510994172,23.56355456,2471.4,2471.3,0.38439414]
[1747510994532,4.04661702,2471.2,2471.1,0.48124837]
[1747510994848,14.28312189,2471.2,2471.1,0.48124837]
[1747510995151,24.51800184,2471.2,2471.1,0.48124837]
[1747510995530,25.06800184,2471.2,2471.1,0.48124837]
[1747510996620,4.0472634,2470.9,2470.4,0.38439414]
[1747510996824,4.04776361,2470.5,2470.4,0.38439414]
[1747510997027,11.80076361,2470.5,2470.4,0.38439414]
[1747510998552,11.80076361,2470.5,2470.2,0.7865]
[1747510998553,11.80076361,2470.5,2470.3,0.38439414]
[1747510998749,4.04792746,2470.4,2470.3,0.38439414]
[1747510998916,4.08219225,2470.4,2470.3,0.38439414]
[1747510999142,5.14641307,2470.4,2470.3,0.38439414]
[1747510999370,4.04792746,2470.4,2470.3,0.38439414]
[1747510999867,4.04792746,2470.4,2470.0,0.8045]
[1747511000041,4.04827381,2470.2,2470.0,0.8045]
[1747511000237,4.04814413,2470.3,2470.0,0.8045]
[1747511000774,4.04802107,2470.4,2470.0,0.8045]
[1747511000947,7.75,2470.3,2470.0,0.8045]
[1747511001150,0.4398,2470.7,2470.0,1.28982997]
[1747511001353,4.04752473,2470.7,2470.1,4.04841909]
[1747511001683,0.4398,2471.1,2470.2,0.8045]
[1747511001848,19.80603363,2471.0,2470.6,0.8045]
[1747511002045,11.80603363,2471.0,2470.6,0.8045]
[1747511002352,11.80679991,2471.1,2470.6,1.28971601]
[1747511002552,4.04711777,2470.9,2470.6,1.28971601]
[1747511003678,4.04703432,2471.0,2470.6,1.28971601]
[1747511004366,4.0468278,2471.1,2470.6,5.33727157]
[1747511004569,4.04694841,2471.0,2470.6,1.28971601]
[1747511004879,11.79787648,2471.1,2470.7,0.53374007]
[1747511005588,11.79787648,2471.1,2470.7,4.58111703]
[1747511005589,7.75,2471.1,2470.7,4.58111703]
[1747511005786,11.79678678,2471.1,2470.7,0.53374007]
[1747511006087,4.04633898,2471.4,2470.8,0.809]
[1747511006382,4.04662546,2471.2,2470.8,1.39655108]
[1747511007084,4.04678592,2471.1,2470.8,1.39655108]
[1747511007285,4.0470269,2471.0,2470.8,1.39655108]
[1747511007487,4.04702336,2471.0,2470.8,0.809]
[1747511008144,4.04710834,2470.9,2470.8,0.809]
[1747511008462,4.04702362,2471.0,2470.8,0.809]
[1747511009886,8.0,2471.7,2470.8,0.809]
[1747511010059,4.04639574,2471.4,2470.9,4.04700391]
[1747511010274,4.04639574,2471.4,2470.9,4.93732507]
[1747511011091,11.78239574,2471.4,2470.9,4.93732507]
[1747511011296,4.0464588,2471.3,2470.9,0.89032116]
[1747511011976,4.0464588,2471.3,2471.0,0.38441974]
[1747511013591,4.0464588,2471.3,2470.9,4.93742772]
[1747511014288,4.0464588,2471.3,2470.9,0.89032116]
[1747511015898,8.1768,2471.6,2471.0,0.57465167]
[1747511016085,11.76413671,2471.5,2471.1,0.7923]
[1747511016285,11.76413671,2471.5,2471.1,1.17719399]
[1747511016682,7.716,2471.5,2471.1,5.22393545]
[1747511016881,11.76303761,2471.6,2471.1,6.151016]
[1747511017086,4.04603761,2471.6,2471.1,6.151016]
[1747511017285,11.76203761,2471.6,2471.1,6.151016]
[1747511017490,11.76203761,2471.6,2471.2,0.38489399]
[1747511017887,11.76200795,2471.6,2471.2,0.38489399]
[1747511018064,4.04626723,2471.5,2471.2,0.38489399]
[1747511020267,7.716,2471.6,2471.2,5.82011785]
[1747511020594,11.76206189,2471.6,2471.2,1.77360533]
[1747511020800,11.76206189,2471.6,2471.3,0.38489399]
[1747511024005,7.716,2471.6,2471.3,0.38489399]
[1747511024218,7.716,2471.6,2471.4,0.7923]
[1747511027306,10.05,2472.4,2471.4,0.62275339]
[1747511027531,4.04512575,2472.2,2471.7,4.04571746]
[1747511027828,4.04475273,2472.4,2471.9,0.7923]